fUST/lending_fUST_20240822
["ID","MTS","AMOUNT","RATE_DAILY","PERIOD"]
[335572372,1724337075955,-500.0,0.00019726,7]
[335572373,1724337075965,-961.46,0.00019726,7]
[335572374,1724337075975,-501.58067388,0.00019726,7]
[335572375,1724337075985,-500.0,0.00019726,7]
[335572376,1724337075995,-450.02647187,0.00019726,7]
[335572377,1724337076007,-500.0,0.00019726,7]
[335572378,1724337076016,-500.0,0.00019726,7]
[335572379,1724337076026,-500.0,0.00019726,7]
[335572380,1724337076038,-500.0,0.00019726,7]
[335572381,1724337076047,-752.18,0.00019726,7]
[335572382,1724337076056,-888.74,0.00019726,7]
[335572383,1724337076065,-500.0,0.00019726,7]
[335572384,1724337076074,-575.3,0.00019726,7]
[335572385,1724337076083,-500.0,0.00019726,7]
[335572386,1724337076092,-500.0,0.00019726,7]
[335572387,1724337076101,-500.0,0.00019726,7]
[335572388,1724337076110,-500.0,0.00019726,7]
[335572389,1724337076119,-605.15,0.00019726,2]
[335572390,1724337076129,-500.0,0.00019726,7]
[335572391,1724337076138,-592.91,0.00019726,7]
[335572392,1724337076147,-500.0,0.00019726,7]
[335572393,1724337076157,-500.0,0.00019726,7]
[335572394,1724337076168,-624.37,0.00019726,7]
[335572395,1724337076177,-500.0,0.00019726,7]
[335572396,1724337076186,-320.51731545,0.00019726,7]
[335572397,1724337076196,-330.30397904,0.00019726,7]
[335572398,1724337076206,-500.0,0.00019726,7]
[335572399,1724337076216,-500.0,0.00019726,7]
[335572400,1724337076226,-967.76,0.00019726,7]
[335572401,1724337076239,-500.0,0.00019726,7]
[335572402,1724337076253,-573.69,0.00019726,7]
[335572403,1724337076264,-500.0,0.00019726,7]
[335572404,1724337076274,-500.0,0.00019726,7]
[335572405,1724337076285,-500.0,0.00019726,7]
[335572406,1724337076298,-500.0,0.00019726,7]
[335572407,1724337076309,-500.0,0.00019726,7]
[335572408,1724337076321,-500.0,0.00019726,7]
[335572409,1724337076331,-500.0,0.00019726,7]
[335572410,1724337076343,-500.0,0.00019726,7]
[335572411,1724337076353,-500.0,0.00019726,7]
[335572412,1724337076364,-173.39568203,0.00019726,7]
[335572413,1724337076374,-500.0,0.00019726,7]
[335572414,1724337076384,-490.25187308,0.00019726,7]
[335572415,1724337076395,-500.0,0.00019726,7]
[335572416,1724337076404,-500.0,0.00019726,7]
[335572417,1724337076416,-500.0,0.00019726,7]
[335572418,1724337076426,-500.0,0.00019726,2]
[335572419,1724337076437,-500.0,0.00019726,7]
[335572420,1724337076448,-1115.71,0.00019726,7]
[335572421,1724337076459,-542.04,0.00019726,7]
[335572422,1724337076469,-504.12106927,0.00019726,7]
[335572423,1724337076478,-500.48133031,0.00019726,7]
[335572424,1724337076487,-511.23779784,0.00019726,7]
[335572425,1724337076496,-838.02,0.00019726,7]
[335572426,1724337076507,-500.0,0.00019726,7]
[335572427,1724337076519,-500.0,0.00019726,7]
[335572428,1724337076529,-500.0,0.00019726,7]
[335572429,1724337076539,-500.0,0.00019726,7]
[335572430,1724337076548,-500.0,0.00019726,7]
[335572431,1724337076557,-1873.86,0.00019726,7]
[335572432,1724337076566,-1830.08,0.00019726,7]
[335572433,1724337076576,-2744.02,0.00019726,7]
[335572434,1724337076585,-500.0,0.00019726,7]
[335572435,1724337076595,-500.0,0.00019726,7]
[335572436,1724337076604,-500.0,0.00019726,7]
[335572437,1724337076614,-500.0,0.00019726,7]
[335572438,1724337076623,-500.0,0.00019726,7]
[335572439,1724337076634,-500.0,0.00019726,7]
[335572440,1724337076644,-634.47,0.00019726,7]
[335572441,1724337076655,-1183.82,0.00019726,7]
[335572442,1724337076665,-500.0,0.00019726,7]
[335572443,1724337076675,-500.0,0.00019726,7]
[335572444,1724337076687,-500.0,0.00019726,7]
[335572445,1724337076698,-500.0,0.00019726,7]
[335572446,1724337076711,-890.77,0.00019726,7]
[335572447,1724337076723,-589.60609884,0.00019726,7]
[335572448,1724337076734,-500.0,0.00019726,7]
[335572449,1724337076746,-1016.87,0.00019726,7]
[335572450,1724337076759,-763.16,0.00019726,7]
[335572451,1724337076769,-997.99,0.00019726,7]
[335572452,1724337076778,-500.0,0.00019726,7]
[335572453,1724337076788,-500.0,0.00019726,7]
[335572454,1724337076797,-651.35,0.00019726,7]
[335572455,1724337076806,-500.0,0.00019726,7]
[335572456,1724337076816,-500.0,0.00019726,7]
[335572457,1724337076826,-500.0,0.00019726,7]
[335572458,1724337076835,-500.0,0.00019726,7]
[335572459,1724337076845,-500.0,0.00019726,7]
[335572460,1724337076854,-500.0,0.00019726,7]
[335572461,1724337076863,-500.0,0.00019726,7]
[335572462,1724337076874,-715.99,0.00019726,7]
[335572463,1724337076883,-500.0,0.00019726,7]
[335572464,1724337076894,-538.85515982,0.00019726,7]
[335572465,1724337076903,-1266.22,0.00019726,7]
[335572466,1724337076912,-1424.76,0.00019726,7]
[335572467,1724337076922,-670.35,0.00019726,7]
[335572468,1724337076931,-500.0,0.00019726,7]
[335572469,1724337076941,-500.0,0.00019726,7]
[335572470,1724337076950,-890.6,0.00019726,7]
[335572471,1724337076959,-500.0,0.00019726,7]
[335572472,1724337076970,-500.0,0.00019726,7]
[335572473,1724337076980,-607.67,0.00019726,7]
[335572474,1724337076990,-587.3,0.00019726,7]
[335572475,1724337077000,-500.0,0.00019726,7]
[335572476,1724337077011,-500.0,0.00019726,7]
[335572477,1724337077024,-500.0,0.00019726,7]
[335572478,1724337077034,-500.0,0.00019726,7]
[335572479,1724337077045,-500.0,0.00019726,7]
[335572480,1724337077054,-500.0,0.00019726,7]
[335572481,1724337077064,-500.0,0.00019726,7]
[335572482,1724337077074,-528.02,0.00019726,7]
[335572483,1724337077084,-500.0,0.00019726,7]
[335572484,1724337077093,-500.0,0.00019726,7]
[335572485,1724337077103,-1496.75,0.00019726,7]
[335572486,1724337077113,-500.0,0.00019726,7]
[335572487,1724337077123,-500.0,0.00019726,7]
[335572488,1724337077132,-500.0,0.00019726,7]
[335572489,1724337077143,-500.0,0.00019726,7]
[335572490,1724337077153,-500.0,0.00019726,7]
[335572491,1724337077165,-500.0,0.00019726,7]
[335572492,1724337077176,-1156.13,0.00019726,7]
[335572493,1724337077185,-500.0,0.00019726,7]
[335572494,1724337077195,-921.66,0.00019726,7]
[335572495,1724337077205,-500.0,0.00019726,7]
[335572496,1724337077215,-500.0,0.00019726,7]
[335572497,1724337077225,-500.0,0.00019726,7]
[335572498,1724337077235,-570.52,0.00019726,7]
[335572499,1724337077248,-924.93,0.00019726,7]
[335572500,1724337077258,-527.40122832,0.00019726,7]
[335572501,1724337077268,-652.28,0.00019726,7]
[335572502,1724337077278,-500.0,0.00019726,7]
[335572503,1724337077287,-963.38,0.00019726,7]
[335572504,1724337077297,-500.0,0.00019726,7]
[335572505,1724337077309,-697.46,0.00019726,7]
[335572506,1724337077319,-500.0,0.00019726,7]
[335572507,1724337077329,-1051.44,0.00019726,7]
[335572508,1724337077339,-500.0,0.00019726,7]
[335572509,1724337077349,-500.0,0.00019726,7]
[335572510,1724337077359,-500.0,0.00019726,7]
[335572511,1724337077369,-500.0,0.00019726,7]
[335572512,1724337077378,-500.0,0.00019726,7]
[335572513,1724337077388,-500.0,0.00019726,7]
[335572514,1724337077398,-724.14,0.00019726,7]
[335572515,1724337077410,-292.62884107,0.00019726,7]
[335572516,1724337077420,-500.0,0.00019726,7]
[335572517,1724337077430,-500.0,0.00019726,2]
[335572518,1724337077441,-500.0,0.00019726,7]
[335572519,1724337077453,-500.0,0.00019726,7]
[335572520,1724337077464,-808.3,0.00019726,7]
[335572521,1724337077474,-667.93,0.00019726,7]
[335572522,1724337077483,-500.0,0.00019726,7]
[335572523,1724337077493,-472.70415435,0.00019726,7]
[335572524,1724337077504,-727.12,0.00019726,7]
[335572525,1724337077514,-500.0,0.00019726,7]
[335572526,1724337077523,-500.0,0.00019726,7]
[335572527,1724337077532,-500.0,0.00019726,7]
[335572528,1724337077544,-500.0,0.00019726,7]
[335572529,1724337077554,-500.0,0.00019726,7]
[335572530,1724337077564,-500.0,0.00019726,7]
[335572531,1724337077574,-500.0,0.00019726,7]
[335572532,1724337077583,-500.0,0.00019726,7]
[335572533,1724337077593,-500.0,0.00019726,7]
[335572534,1724337077602,-500.0,0.00019726,7]
[335572535,1724337077612,-500.0,0.00019726,7]
[335572536,1724337077621,-500.0,0.00019726,7]
[335572537,1724337077632,-500.0,0.00019726,7]
[335572538,1724337077641,-517.18697138,0.00019726,7]
[335572539,1724337077651,-560.96,0.00019726,7]
[335572540,1724337077660,-540.25179942,0.00019726,7]
[335572541,1724337077670,-500.0,0.00019726,7]
[335572542,1724337077681,-1126.21,0.00019726,7]
[335572543,1724337077693,-500.0,0.00019726,7]
[335572544,1724337077702,-508.32643235,0.00019726,7]
[335572545,1724337077712,-746.35,0.00019726,7]
[335572546,1724337077724,-603.24,0.00019726,7]
[335572547,1724337077735,-500.0,0.00019726,7]
[335572548,1724337077746,-439.10986591,0.00019726,7]
[335572549,1724337077760,-1425.13,0.00019726,7]
[335572550,1724337077769,-916.64,0.00019726,7]
[335572551,1724337077778,-500.0,0.00019726,7]
[335572552,1724337077787,-1028.48,0.00019726,7]
[335572553,1724337077797,-500.0,0.00019726,7]
[335572554,1724337077806,-500.0,0.00019726,7]
[335572555,1724337077947,-500.0,0.00019726,7]
[335572556,1724337077970,-500.0,0.00019726,7]
[335572557,1724337077979,-860.76,0.00019726,7]
[335572558,1724337077988,-500.0,0.00019726,7]
[335572559,1724337077997,-500.0,0.00019726,7]
[335572560,1724337078007,-500.0,0.00019726,7]
[335572561,1724337078017,-754.51,0.00019726,7]
[335572562,1724337078026,-500.0,0.00019726,7]
[335572563,1724337078035,-504.24074947,0.00019726,7]
[335572564,1724337078044,-500.0,0.00019726,7]
[335572565,1724337078055,-500.0,0.00019726,7]
[335572566,1724337078065,-538.48,0.00019726,7]
[335572567,1724337078074,-500.0,0.00019726,7]
[335572568,1724337078084,-500.0,0.00019726,7]
[335572569,1724337078093,-500.0,0.00019726,7]
[335572570,1724337078102,-500.0,0.00019726,7]
[335572571,1724337078112,-595.55,0.00019726,7]
[335572572,1724337078121,-762.94,0.00019726,7]
[335572573,1724337078131,-500.0,0.00019726,7]
[335572574,1724337078141,-500.0,0.00019726,7]
[335572575,1724337078150,-463.46629803,0.00019726,7]
[335572576,1724337078160,-1314.87,0.00019726,7]
[335572577,1724337078173,-802.29,0.00019726,7]
[335572578,1724337078182,-500.0,0.00019726,7]
[335572579,1724337078192,-500.0,0.00019726,7]
[335572580,1724337078201,-500.0,0.00019726,7]
[335572581,1724337078210,-899.02,0.00019726,7]
[335572582,1724337078221,-7996.98,0.00019726,7]
[335572583,1724337078230,-500.81,0.00019726,7]
[335572584,1724337078241,-879.16,0.00019726,7]
[335572585,1724337078251,-1309.03,0.00019726,7]
[335572586,1724337078261,-500.0,0.00019726,7]
[335572587,1724337078271,-225.2407743,0.00019726,7]
[335572588,1724337078282,-500.65625609,0.00019726,7]
[335572589,1724337078292,-500.0,0.00019726,7]
[335572590,1724337078302,-500.0,0.00019726,7]
[335572591,1724337078312,-500.0,0.00019726,7]
[335572592,1724337078321,-1025.81,0.00019726,7]
[335572593,1724337078331,-836.99,0.00019726,7]
[335572594,1724337078341,-1000.0,0.00019726,7]
[335572595,1724337078350,-500.0,0.00019726,7]
[335572596,1724337078359,-517.1,0.00019726,7]
[335572597,1724337078369,-500.0,0.00019726,7]
[335572598,1724337078379,-701.2,0.00019726,7]
[335572599,1724337078388,-500.0,0.00019726,7]
[335572600,1724337078397,-633.22,0.00019726,7]
[335572601,1724337078407,-500.0,0.00019726,7]
[335572602,1724337078416,-500.0,0.00019726,7]
[335572603,1724337078425,-500.0,0.00019726,7]
[335572604,1724337078434,-755.23,0.00019726,7]
[335572605,1724337078444,-860.08,0.00019726,7]
[335572606,1724337078454,-500.0,0.00019726,7]
[335572607,1724337078463,-500.0,0.00019726,7]
[335572608,1724337078472,-1414.5,0.00019726,7]
[335572609,1724337078482,-500.0,0.00019726,7]
[335572610,1724337078492,-537.34576519,0.00019726,7]
[335572611,1724337078503,-500.0,0.00019726,7]
[335572612,1724337078513,-500.0,0.00019726,7]
[335572613,1724337078522,-500.0,0.00019726,7]
[335572614,1724337078532,-500.0,0.00019726,7]
[335572615,1724337078542,-500.0,0.00019726,7]
[335572616,1724337078552,-500.0,0.00019726,7]
[335572617,1724337078561,-983.19,0.00019726,7]
[335572618,1724337078571,-500.0,0.00019726,7]
[335572619,1724337078581,-1556.78,0.00019726,7]
[335572620,1724337078591,-729.98,0.00019726,7]
[335572621,1724337078600,-500.0,0.00019726,7]
[335572622,1724337078609,-972.14,0.00019726,7]
[335572623,1724337078619,-500.0,0.00019726,7]
[335572624,1724337078628,-501.27274604,0.00019726,7]
[335572625,1724337078637,-953.52,0.00019726,7]
[335572626,1724337078647,-500.0,0.00019726,7]
[335572627,1724337078656,-500.14702335,0.00019726,7]
[335572628,1724337078665,-500.0,0.00019726,7]
[335572629,1724337078674,-846.73,0.00019726,7]
[335572630,1724337078683,-738.3,0.00019726,7]
[335572631,1724337078693,-500.0,0.00019726,7]
[335572632,1724337078702,-500.0,0.00019726,7]
[335572633,1724337078711,-4559.07,0.00019726,7]
[335572634,1724337078720,-500.0,0.00019726,7]
[335572635,1724337078730,-500.0,0.00019726,7]
[335572636,1724337078739,-1040.74,0.00019726,7]
[335572637,1724337078749,-776.26,0.00019726,7]
[335572638,1724337078761,-713.41,0.00019726,7]
[335572639,1724337078770,-500.0,0.00019726,7]
[335572640,1724337078779,-502.93,0.00019726,7]
[335572641,1724337078789,-500.0,0.00019726,7]
[335572642,1724337078798,-500.0,0.00019726,7]
[335572643,1724337078808,-500.0,0.00019726,7]
[335572644,1724337078817,-712.81,0.00019726,7]
[335572645,1724337078826,-500.0,0.00019726,7]
[335572646,1724337078836,-574.44,0.00019726,7]
[335572647,1724337078845,-753.0,0.00019726,7]
[335572648,1724337078855,-500.0,0.00019726,7]
[335572649,1724337078864,-500.0,0.00019726,7]
[335572650,1724337078874,-500.0,0.00019726,7]
[335572651,1724337078883,-644.46,0.00019726,7]
[335572652,1724337078893,-539.97901393,0.00019726,7]
[335572653,1724337078903,-500.0,0.00019726,7]
[335572654,1724337078912,-500.0,0.00019726,7]
[335572655,1724337078922,-3014.58,0.00019726,7]
[335572656,1724337078931,-367.0747163,0.00019726,7]
[335572657,1724337078939,-500.0,0.00019726,7]
[335572658,1724337078949,-500.0,0.00019726,7]
[335572659,1724337078958,-500.0,0.00019726,7]
[335572660,1724337078967,-971.35,0.00019726,7]
[335572661,1724337078977,-500.0,0.00019726,7]
[335572662,1724337078987,-828.87,0.00019726,7]
[335572663,1724337078996,-793.89,0.00019726,7]
[335572664,1724337079006,-500.0,0.00019726,7]
[335572665,1724337079022,-500.0,0.00019726,7]
[335572666,1724337079031,-500.0,0.00019726,7]
[335572667,1724337079040,-4804.15,0.00019726,7]
[335572668,1724337079050,-429.07075477,0.00019726,7]
[335572669,1724337079059,-753.53,0.00019726,7]
[335572670,1724337079070,-536.81,0.00019726,7]
[335572671,1724337079079,-3219.17,0.00019726,7]
[335572672,1724337079088,-500.0,0.00019726,7]
[335572673,1724337079097,-500.0,0.00019726,7]
[335572674,1724337079107,-500.0,0.00019726,7]
[335572675,1724337079116,-908.95,0.00019726,7]
[335572676,1724337079126,-500.0,0.00019726,7]
[335572677,1724337079135,-500.0,0.00019726,7]
[335572678,1724337079144,-2110.08,0.00019726,7]
[335572679,1724337079154,-834.94,0.00019726,7]
[335572680,1724337079165,-602.89,0.00019726,7]
[335572681,1724337079176,-500.0,0.00019726,7]
[335572682,1724337079186,-500.0,0.00019726,7]
[335572683,1724337079195,-500.0,0.00019726,7]
[335572684,1724337079205,-757.17,0.00019726,7]
[335572685,1724337079215,-3504.48,0.00019726,7]
[335572686,1724337079224,-682.2,0.00019726,7]
[335572687,1724337079233,-500.0,0.00019726,7]
[335572688,1724337079243,-500.0,0.00019726,7]
[335572689,1724337079253,-1189.02,0.00019726,7]
[335572690,1724337079268,-805.36,0.00019726,7]
[335572691,1724337079278,-500.0,0.00019726,7]
[335572692,1724337079287,-500.0,0.00019726,7]
[335572693,1724337079296,-500.0,0.00019726,7]
[335572694,1724337079306,-921.36,0.00019726,7]
[335572695,1724337079315,-500.0,0.00019726,7]
[335572696,1724337079325,-500.0,0.00019726,7]
[335572697,1724337079334,-500.0,0.00019726,7]
[335572698,1724337079344,-500.0,0.00019726,7]
[335572699,1724337079353,-512.66479152,0.00019726,7]
[335572700,1724337079362,-500.0,0.00019726,7]
[335572701,1724337079371,-6311.13,0.00019726,7]
[335572702,1724337079381,-500.0,0.00019726,2]
[335572703,1724337079391,-500.0,0.00019726,7]
[335572704,1724337079400,-500.0,0.00019726,7]
[335572705,1724337079410,-2064.66,0.00019726,7]
[335572706,1724337079419,-500.0,0.00019726,7]
[335572707,1724337079429,-500.0,0.00019726,7]
[335572708,1724337079438,-500.0,0.00019726,7]
[335572709,1724337079448,-500.0,0.00019726,7]
[335572710,1724337079458,-3117.7,0.00019726,7]
[335572711,1724337079467,-943.97,0.00019726,7]
[335572712,1724337079477,-500.0,0.00019726,7]
[335572713,1724337079486,-2763.47,0.00019726,7]
[335572714,1724337079495,-500.0,0.00019726,7]
[335572715,1724337079506,-500.0,0.00019726,7]
[335572716,1724337079515,-1203.41,0.00019726,7]
[335572717,1724337079524,-742.76,0.00019726,7]
[335572718,1724337079533,-500.0,0.00019726,7]
[335572719,1724337079542,-500.0,0.00019726,7]
[335572720,1724337079552,-500.0,0.00019726,7]
[335572721,1724337079561,-446.48484903,0.00019726,7]
[335572722,1724337079572,-8201.63,0.00019726,7]
[335572723,1724337079581,-853.15,0.00019726,7]
[335572724,1724337079590,-500.0,0.00019726,7]
[335572725,1724337079600,-502.45076036,0.00019726,7]
[335572726,1724337079610,-548.49,0.00019726,7]
[335572727,1724337079620,-662.18,0.00019726,7]
[335572728,1724337079629,-500.0,0.00019726,7]
[335572729,1724337079638,-500.0,0.00019726,7]
[335572730,1724337079648,-500.0,0.00019726,7]
[335572731,1724337079658,-503.92,0.00019726,7]
[335572732,1724337079668,-508.91561524,0.00019726,7]
[335572733,1724337079677,-1222.39,0.00019726,7]
[335572734,1724337079687,-2232.84,0.00019726,7]
[335572735,1724337079697,-1020.24,0.00019726,7]
[335572736,1724337079707,-500.0,0.00019726,7]
[335572737,1724337079716,-500.0,0.00019726,7]
[335572738,1724337079725,-500.0,0.00019726,7]
[335572739,1724337079735,-500.0,0.00019726,7]
[335572740,1724337079745,-500.0,0.00019726,7]
[335572741,1724337079755,-889.15,0.00019726,7]
[335572742,1724337079765,-500.0,0.00019726,7]
[335572743,1724337079775,-1378.56,0.00019726,7]
[335572744,1724337079785,-500.0,0.00019726,7]
[335572745,1724337079794,-1300.47,0.00019726,7]
[335572746,1724337079803,-500.0,0.00019726,7]
[335572747,1724337079814,-500.0,0.00019726,7]
[335572748,1724337079823,-500.0,0.00019726,7]
[335572749,1724337079833,-500.0,0.00019726,7]
[335572750,1724337079843,-500.0,0.00019726,7]
[335572751,1724337079853,-500.0,0.00019726,7]
[335572752,1724337079862,-500.0,0.00019726,7]
[335572753,1724337079872,-500.0,0.00019726,7]
[335572754,1724337079882,-500.0,0.00019726,7]
[335572755,1724337079892,-500.0,0.00019726,7]
[335572756,1724337079901,-500.0,0.00019726,7]
[335572757,1724337079911,-500.0,0.00019726,7]
[335572758,1724337079921,-500.0,0.00019726,7]
[335572759,1724337079931,-500.0,0.00019726,7]
[335572760,1724337079941,-590.97,0.00019726,7]
[335572761,1724337079950,-3423.46,0.00019726,7]
[335572762,1724337079961,-751.09,0.00019726,7]
[335572763,1724337079971,-500.0,0.00019726,7]
[335572764,1724337079981,-574.33,0.00019726,7]
[335572765,1724337079991,-500.0,0.00019726,7]
[335572766,1724337080000,-500.0,0.00019726,7]
[335572767,1724337080011,-500.0,0.00019726,7]
[335572768,1724337080020,-6598.36,0.00019726,7]
[335572769,1724337080029,-500.0,0.00019726,7]
[335572770,1724337080039,-1292.32,0.00019726,7]
[335572771,1724337080048,-505.98043148,0.00019726,7]
[335572772,1724337080058,-500.0,0.00019726,7]
[335572773,1724337080068,-500.0,0.00019726,2]
[335572774,1724337080078,-501.33,0.00019726,7]
[335572775,1724337080086,-1155.5,0.00019726,7]
[335572776,1724337080096,-500.0,0.00019726,7]
[335572777,1724337080106,-500.0,0.00019726,7]
[335572778,1724337080116,-500.0,0.00019726,7]
[335572779,1724337080126,-500.0,0.00019726,7]
[335572780,1724337080136,-2752.94,0.00019726,7]
[335572781,1724337080145,-809.66,0.00019726,7]
[335572782,1724337080155,-500.0,0.00019726,7]
[335572783,1724337080167,-501.44,0.00019726,7]
[335572784,1724337080177,-5923.55,0.00019726,7]
[335572785,1724337080187,-509.69,0.00019726,7]
[335572786,1724337080196,-2097.57,0.00019726,7]
[335572787,1724337080206,-500.0,0.00019726,7]
[335572788,1724337080216,-500.0,0.00019726,7]
[335572789,1724337080226,-852.22,0.00019726,7]
[335572790,1724337080236,-500.0,0.00019726,7]
[335572791,1724337080249,-500.0,0.00019726,7]
[335572792,1724337080261,-470.66163848,0.00019726,7]
[335572793,1724337080270,-500.0,0.00019726,7]
[335572794,1724337080280,-500.0,0.00019726,7]
[335572795,1724337080290,-3408.71,0.00019726,7]
[335572796,1724337080299,-544.68,0.00019726,7]
[335572797,1724337080309,-500.0,0.00019726,7]
[335572798,1724337080319,-500.0,0.00019726,7]
[335572799,1724337080330,-582.07,0.00019726,7]
[335572800,1724337080340,-500.0,0.00019726,7]
[335572801,1724337080350,-1232.75,0.00019726,7]
[335572802,1724337080361,-2053.08,0.00019726,7]
[335572803,1724337080371,-610.51,0.00019726,7]
[335572804,1724337080381,-500.0,0.00019726,7]
[335572805,1724337080391,-524.40533413,0.00019726,7]
[335572806,1724337080401,-500.0,0.00019726,7]
[335572807,1724337080411,-500.0,0.00019726,7]
[335572808,1724337080421,-500.0,0.00019726,7]
[335572809,1724337080429,-168.38467933,0.00019726,7]
[335572810,1724337080439,-500.0,0.00019726,7]
[335572811,1724337080449,-2144.06,0.00019726,7]
[335572812,1724337080458,-150.0,0.00019773,2]
[335572813,1724337080468,-150.0,0.00019773,2]
[335572814,1724337080478,-150.0,0.00019773,2]
[335572815,1724337080488,-5454.74820379,0.0002,2]
[335572816,1724337080497,-223.41519948,0.0002,2]
[335572817,1724337080506,-10515.51217135,0.0002,2]
[335572818,1724337080515,-154.99524332,0.0002,2]
[335572819,1724337080525,-156.68860479,0.0002,2]
[335572820,1724337080536,-6931.78516121,0.0002,2]
[335572821,1724337080545,-500.0,0.0002,3]
[335572822,1724337080555,-435.0,0.0002,2]
[335572823,1724337080565,-506.0,0.0002,2]
[335572824,1724337080574,-3982.608573,0.0002,5]
[335572825,1724337080583,-240.41894714,0.0002,2]
[335572826,1724337080593,-335.2,0.00020023,2]
[335572827,1724337080603,-500.0,0.00020273,7]
[335572828,1724337080612,-500.0,0.00020273,7]
[335572829,1724337080621,-160.04959674,0.00020273,7]
[335572830,1724337080631,-500.0,0.00020273,7]
[335572831,1724337080641,-525.43373634,0.00020273,7]
[335572832,1724337080651,-500.0,0.00020273,7]
[335572833,1724337080660,-501.26697666,0.00020273,7]
[335572834,1724337080670,-514.93275159,0.00020273,2]
[335572835,1724337080679,-500.0,0.00020273,7]
[335572836,1724337080689,-500.0,0.00020273,7]
[335572837,1724337080698,-500.0,0.00020273,7]
[335572838,1724337080708,-500.0,0.00020273,7]
[335572839,1724337080718,-613.79,0.00020273,7]
[335572840,1724337080727,-503.57326137,0.00020273,7]
[335572841,1724337080738,-657.18,0.00020273,7]
[335572842,1724337080748,-500.0,0.00020273,7]
[335572843,1724337080758,-499.89726181,0.00020273,7]
[335572844,1724337080767,-500.0,0.00020273,7]
[335572845,1724337080777,-500.0,0.00020273,7]
[335572846,1724337080786,-500.0,0.00020273,7]
[335572847,1724337080795,-500.0,0.00020273,7]
[335572848,1724337080804,-500.0,0.00020273,7]
[335572849,1724337080814,-500.0,0.00020273,7]
[335572850,1724337080823,-500.0,0.00020273,7]
[335572851,1724337080833,-629.91,0.00020273,7]
[335572852,1724337080842,-500.0,0.00020273,7]
[335572853,1724337080852,-500.0,0.00020273,7]
[335572854,1724337080862,-500.0,0.00020273,7]
[335572855,1724337080871,-500.0,0.00020273,7]
[335572856,1724337080881,-500.0,0.00020273,7]
[335572857,1724337080891,-462.16824405,0.00020273,7]
[335572858,1724337080900,-501.04921057,0.00020273,7]
[335572859,1724337080910,-500.0,0.00020273,7]
[335572860,1724337080920,-500.0,0.00020273,7]
[335572861,1724337080929,-659.09,0.00020273,7]
[335572862,1724337080939,-500.0,0.00020273,7]
[335572863,1724337080948,-1390.91,0.00020273,7]
[335572864,1724337080958,-558.51,0.00020273,7]
[335572865,1724337080967,-500.0,0.00020273,7]
[335572866,1724337080978,-500.0,0.00020273,7]
[335572867,1724337080987,-508.14560004,0.00020273,7]
[335572868,1724337080997,-500.0,0.00020273,7]
[335572869,1724337081007,-500.0,0.00020273,7]
[335572870,1724337081017,-507.0688947,0.00020273,7]
[335572871,1724337081027,-500.0,0.00020273,7]